bitfinex-derivatives/quotes_BTCF0:USTF0_20251204
["timestamp","ask_amount","ask_price","bid_price","bid_amount"]
[1764806798789,0.24152,93455.0,93454.0,0.1852205]
[1764806802680,0.21998,93455.0,93454.0,0.1852205]
[1764806803281,0.27152,93455.0,93454.0,0.1852205]
[1764806805195,0.27152,93455.0,93454.0,0.0021605]
[1764806805983,0.27152,93455.0,93447.0,0.01562402]
[1764806805984,0.16421,93448.0,93447.0,0.09254681]
[1764806806196,0.1749093,93447.0,93446.0,0.00026754]
[1764806806392,0.2049093,93447.0,93446.0,0.00026754]
[1764806807196,0.20499235,93447.0,93446.0,0.00026754]
[1764806807389,0.20599235,93447.0,93446.0,0.00026754]
[1764806808595,0.20599235,93447.0,93446.0,0.08103754]
[1764806808989,0.20699235,93447.0,93446.0,0.08103754]
[1764806809190,0.19629305,93447.0,93446.0,0.17751269]
[1764806809387,0.03208305,93447.0,93446.0,0.17751269]
[1764806810397,0.03108305,93447.0,93446.0,0.17751269]
[1764806810603,0.03208305,93447.0,93446.0,0.27751269]
[1764806811100,0.03108305,93447.0,93446.0,0.27851269]
[1764806814704,0.03008305,93447.0,93446.0,0.27851269]
[1764806815803,0.11088305,93447.0,93446.0,0.27851269]
[1764806816103,0.11088305,93447.0,93446.0,0.27751269]
[1764806816299,0.11188305,93447.0,93446.0,0.27851269]
[1764806816798,0.11188305,93447.0,93446.0,0.27751269]
[1764806816799,0.03108305,93447.0,93446.0,0.27751269]
[1764806817005,0.03108305,93447.0,93446.0,0.27851269]
[1764806817906,0.03008305,93447.0,93446.0,0.27851269]
[1764806818207,0.03108305,93447.0,93446.0,0.27851269]
[1764806819011,0.03008305,93447.0,93446.0,0.27851269]
[1764806819605,0.19429305,93447.0,93446.0,0.27851269]
[1764806820205,0.19429305,93447.0,93446.0,0.17851269]
[1764806821005,0.19529305,93447.0,93446.0,0.17851269]
[1764806821304,0.19529305,93447.0,93446.0,0.27851269]
[1764806821502,0.19529305,93447.0,93446.0,0.17851269]
[1764806821906,0.19429305,93447.0,93446.0,0.17851269]
[1764806822113,0.19529305,93447.0,93446.0,0.17851269]
[1764806823006,0.19529305,93447.0,93446.0,0.01788269]
[1764806823409,0.19529305,93447.0,93446.0,0.09865269]
[1764806824512,0.19529305,93447.0,93446.0,0.17955269]
[1764806826609,0.19529305,93447.0,93446.0,0.01788269]
[1764806828315,0.19529305,93447.0,93446.0,0.18286269]
[1764806828921,0.03108305,93447.0,93446.0,0.18286269]
[1764806830016,0.03108305,93447.0,93446.0,0.27905038]
[1764806830318,0.03108305,93447.0,93446.0,0.37905038]
[1764806831116,0.03108305,93447.0,93446.0,0.28286269]
[1764806836012,0.20292305,93447.0,93446.0,0.18286269]
[1764806842812,0.20292305,93447.0,93446.0,0.27904458]
[1764806843018,0.20292305,93447.0,93446.0,0.18286269]
[1764806845726,0.20292305,93447.0,93446.0,0.01788269]
[1764806847527,0.20292305,93447.0,93446.0,0.10196269]
[1764806849215,0.20292305,93447.0,93446.0,0.18286269]
[1764806849620,0.20292305,93447.0,93446.0,0.10196269]
[1764806849821,0.20292305,93447.0,93446.0,0.01788269]
[1764806851530,0.17184,93441.0,93440.0,0.09618189]
[1764806851719,0.17184,93441.0,93429.0,2.5e-06]
[1764806851720,0.17184,93430.0,93429.0,2.5e-06]
[1764806851925,0.1825439,93407.0,93400.0,0.08513647]
[1764806852237,0.2126734,93407.0,93406.0,0.01667225]
[1764806852428,0.2126734,93407.0,93406.0,0.00026765]
[1764806852630,0.6126734,93407.0,93406.0,5e-08]
[1764806852925,0.6126734,93407.0,93406.0,0.01672969]
[1764806853829,0.2506445,93401.0,93400.0,0.00011387]
[1764806854127,0.2806445,93401.0,93400.0,0.00011387]
[1764806854529,0.2806445,93401.0,93400.0,0.01721379]
[1764806854730,0.2806445,93401.0,93400.0,0.00011387]
[1764806854931,0.2806445,93401.0,93400.0,0.00511387]
[1764806855331,0.2806445,93401.0,93400.0,0.00611387]
[1764806855825,0.2806445,93401.0,93400.0,0.02295295]
[1764806857531,0.17875,93373.0,93372.0,0.22525]
[1764806857739,0.17875,93367.0,93366.0,0.00026776]
[1764806858039,0.20875,93367.0,93366.0,0.00026776]
[1764806858234,0.20875,93367.0,93366.0,0.01700461]
[1764806858546,0.20883413,93367.0,93366.0,0.01700461]
[1764806859636,0.20983413,93367.0,93366.0,0.01700461]
[1764806860140,0.20983413,93367.0,93366.0,0.21316461]
[1764806860343,0.21406413,93367.0,93366.0,0.21316461]
[1764806861529,0.21906413,93367.0,93366.0,0.21416461]
[1764806862246,0.21906413,93367.0,93366.0,0.21316461]
[1764806862442,0.03608413,93367.0,93366.0,0.21316461]
[1764806862645,0.03508413,93367.0,93366.0,0.21316461]
[1764806862854,0.03608413,93367.0,93366.0,0.31316461]
[1764806864350,0.03608413,93367.0,93366.0,0.21316461]
[1764806865751,0.03608413,93367.0,93366.0,0.31316461]
[1764806867754,0.03608413,93367.0,93366.0,0.37066461]
[1764806868157,0.24208413,93367.0,93366.0,0.37066461]
[1764806868361,0.24208413,93367.0,93366.0,0.11280461]
[1764806868747,0.24208413,93367.0,93366.0,0.01700461]
[1764806873358,0.206,93353.0,93352.0,0.19616]
[1764806873570,0.236,93353.0,93352.0,0.19616]
[1764806873960,0.24671,93353.0,93352.0,0.19616]
[1764806874159,0.24671,93353.0,93352.0,0.21374981]
[1764806874672,0.24771,93353.0,93352.0,0.21374981]
[1764806874869,0.24971,93353.0,93352.0,0.27124981]
[1764806877164,0.24971,93353.0,93352.0,0.01758981]
[1764806877468,0.24971,93353.0,93328.0,0.0107128]
[1764806877469,0.0107103,93351.0,93332.0,0.19616]
[1764806877668,0.0407103,93351.0,93332.0,0.19616]
[1764806877969,0.2167116,93340.0,93339.0,0.19616]
[1764806878171,0.04080664,93340.0,93339.0,0.19616]
[1764806879260,0.24780664,93340.0,93339.0,0.20516]
[1764806879468,0.23709504,93340.0,93339.0,0.20516]
[1764806880162,0.23709504,93340.0,93339.0,0.20616]
[1764806880369,0.23709504,93340.0,93339.0,0.1058]
[1764806880765,0.23709504,93340.0,93339.0,0.20616]
[1764806881365,0.03109504,93340.0,93339.0,0.30616]
[1764806881563,0.03109504,93340.0,93339.0,0.20616]
[1764806883177,0.03109504,93340.0,93339.0,0.30616]
[1764806884469,0.05,93350.0,93339.0,0.30616]
[1764806884470,0.05,93350.0,93349.0,0.2012905]
[1764806884767,0.03,93350.0,93349.0,0.2012905]
[1764806885372,0.03008803,93350.0,93349.0,0.2012905]
[1764806885572,0.03008803,93350.0,93349.0,0.19058]
[1764806886373,0.13350803,93350.0,93349.0,0.19058]
[1764806886573,0.03008803,93350.0,93349.0,0.19058]
[1764806886776,0.13350803,93350.0,93349.0,0.19058]
[1764806886976,0.03108803,93350.0,93349.0,0.19058]
[1764806887166,0.13450803,93350.0,93349.0,0.19058]
[1764806887366,0.16086447,93350.0,93349.0,0.19058]
[1764806887675,0.05744447,93350.0,93349.0,0.29058]
[1764806887973,0.06815487,93350.0,93349.0,0.29058]
[1764806888174,0.04179843,93350.0,93349.0,0.19058]
[1764806888371,0.03108803,93350.0,93349.0,0.19058]
[1764806889475,0.03108803,93350.0,93349.0,0.29058]
[1764806892671,0.05,93360.0,93359.0,0.2566994]
[1764806892869,0.03,93360.0,93359.0,0.2566994]
[1764806893671,0.03007192,93360.0,93359.0,0.2566994]
[1764806893866,0.03107192,93360.0,93359.0,0.3566994]
[1764806894066,0.03407192,93360.0,93359.0,0.3566994]
[1764806894468,0.03407192,93360.0,93359.0,0.2566994]
[1764806895871,0.03407192,93360.0,93359.0,0.3566994]
[1764806896071,0.03407192,93360.0,93359.0,0.2566994]
[1764806896267,0.22887192,93360.0,93359.0,0.24599]
[1764806896571,0.13749192,93360.0,93359.0,0.33120959]
[1764806896772,0.03407192,93360.0,93359.0,0.33120959]
[1764806898273,0.03407192,93360.0,93359.0,0.43120959]
[1764806901173,0.05,93370.0,93369.0,0.2012882]
[1764806901367,0.04,93370.0,93369.0,0.2012882]
[1764806902376,0.041,93370.0,93369.0,0.2012882]
[1764806903482,0.045,93370.0,93369.0,0.2012882]
[1764806905184,0.2398,93370.0,93369.0,0.2012882]
[1764806905571,0.14842,93370.0,93369.0,0.2012882]
[1764806905770,0.045,93370.0,93369.0,0.2012882]
[1764806906381,0.14842,93370.0,93369.0,0.2012882]
[1764806907885,0.2398,93370.0,93369.0,0.19058]
[1764806908980,0.14842,93370.0,93369.0,0.19058]
[1764806909175,0.2398,93370.0,93369.0,0.19058]
[1764806909885,0.2398,93370.0,93369.0,0.09491]
[1764806910079,0.2398,93370.0,93369.0,0.19058]
[1764806924299,0.2398,93370.0,93369.0,0.26750174]
[1764806925496,0.045,93370.0,93369.0,0.3012882]
[1764806925688,0.00016068,93379.0,93378.0,0.1765]
[1764806925888,0.03016068,93379.0,93378.0,0.1765]
[1764806926603,0.17897,93372.0,93371.0,0.27180187]
[1764806926792,0.20897,93372.0,93371.0,0.1765]
[1764806928587,0.21097,93372.0,93371.0,0.1765]
[1764806928793,0.21197,93372.0,93371.0,0.1765]
[1764806929503,0.033,93372.0,93371.0,0.1765]
[1764806929895,0.21197,93372.0,93371.0,0.1765]
[1764806931893,0.033,93372.0,93371.0,0.1765]
[1764806932099,0.033,93372.0,93371.0,0.2765]
[1764806935006,0.00016068,93379.0,93378.0,0.23104]
[1764806935205,0.03016068,93379.0,93378.0,0.23104]
[1764806935410,0.03016068,93379.0,93378.0,0.2417472]
[1764806936099,0.03216068,93379.0,93378.0,0.3417472]
[1764806936310,0.03516068,93379.0,93378.0,0.3417472]
[1764806940906,0.0107076,93374.0,93373.0,0.09626703]
[1764806941102,0.2196776,93374.0,93373.0,0.1765]
[1764806942102,0.2206776,93374.0,93373.0,0.1765]
[1764806942304,0.2216776,93374.0,93373.0,0.1765]
[1764806943298,0.17897,93373.0,93372.0,0.24451222]
[1764806943500,0.11896,93373.0,93372.0,0.18724]
[1764806943803,0.20385,93373.0,93372.0,0.16755]
[1764806944009,0.17385,93370.0,93369.0,0.08662068]
[1764806944208,0.21385,93370.0,93369.0,0.16769068]
[1764806945209,0.21485,93370.0,93369.0,0.16769068]
[1764806948912,0.21485,93370.0,93369.0,0.08662068]
[1764806949302,0.21485,93370.0,93369.0,0.16769068]
[1764806950815,0.21485,93370.0,93369.0,0.17839888]
[1764806951912,0.21485,93370.0,93369.0,0.08662068]
[1764806952216,0.21485,93370.0,93369.0,0.16769068]
[1764806955219,0.21485,93370.0,93369.0,0.08662068]
[1764806955619,0.21485,93370.0,93369.0,0.16362147]
[1764806955916,0.21485,93370.0,93369.0,0.00016068]
[1764806959422,0.21485,93370.0,93369.0,0.16769068]
[1764806960525,0.21485,93370.0,93369.0,0.00016068]
[1764806960725,0.1845591,93361.0,93359.0,0.07700079]
[1764806960927,0.1845594,93359.0,93357.0,0.07700079]
[1764806961120,0.17385,93358.0,93357.0,0.16346079]
[1764806961315,0.20385,93358.0,93357.0,0.24453079]
[1764806961522,0.20385,93358.0,93357.0,0.16753]
[1764806962521,0.20385,93358.0,93357.0,0.16953]
[1764806962725,0.20385,93358.0,93357.0,0.08846]
[1764806963228,0.20385,93358.0,93357.0,0.002]
[1764806963526,0.20485,93358.0,93357.0,0.002]
[1764806964725,0.17385,93347.0,93346.0,0.07700079]
[1764806964931,0.17385,93347.0,93330.0,0.13636287]
[1764806964932,0.1845612,93343.0,93341.0,0.07700079]
[1764806965130,0.1845614,93341.0,93340.0,0.07700079]
[1764806965330,0.17385,93340.0,93339.0,0.16346079]
[1764806965532,0.20385,93340.0,93339.0,0.08646]
[1764806966025,0.20385,93340.0,93339.0,0.16753]
[1764806966720,0.20385,93340.0,93339.0,0.16953]
[1764806967225,0.20385,93340.0,93339.0,0.246427]
[1764806967430,0.20385,93340.0,93339.0,0.002]
[1764806967929,0.20485,93340.0,93339.0,0.015]
[1764806968430,0.20485,93340.0,93339.0,0.10146]
[1764806971950,0.20485,93340.0,93339.0,0.015]
[1764806973841,0.20385,93340.0,93339.0,0.013]
[1764806974049,0.20485,93340.0,93339.0,0.013]
[1764806974934,0.1583,93332.0,93331.0,0.10348583]
[1764806975141,0.1883,93332.0,93331.0,0.10348583]
[1764806975636,0.1883,93332.0,93331.0,0.18015583]
[1764806975839,0.1990125,93332.0,93331.0,0.01791583]
[1764806976042,0.169013,93327.0,93326.0,0.16250788]
[1764806976248,0.199013,93327.0,93326.0,0.16250788]
[1764806977245,0.199013,93327.0,93326.0,0.18121578]
[1764806977848,0.199013,93327.0,93326.0,0.18021578]
[1764806978147,0.11298,93327.0,93326.0,0.18021578]
[1764806978352,0.031,93327.0,93326.0,0.18021578]
[1764806978653,0.1893,93327.0,93326.0,0.18021578]
[1764806979152,0.1893,93327.0,93326.0,0.19092888]
[1764806979741,0.1893,93327.0,93326.0,0.19192888]
[1764806979950,0.031,93327.0,93326.0,0.19192888]
[1764806980747,0.041713,93327.0,93326.0,0.19192888]
[1764806981049,0.192203,93327.0,93326.0,0.18121578]
[1764806981646,0.031,93327.0,93326.0,0.18121578]
[1764806984352,0.00016068,93336.0,93335.0,0.14663]
[1764806984552,0.03016068,93336.0,93335.0,0.1573421]
[1764806984951,0.05,93346.0,93345.0,0.157341]
[1764806985152,0.0107103,93352.0,93351.0,0.14663]
[1764806985360,0.0407103,93352.0,93351.0,0.14663]
[1764806986448,0.1173403,93352.0,93351.0,0.14663]
[1764806986848,0.1912003,93352.0,93351.0,0.14663]
[1764806987047,0.1952003,93352.0,93351.0,0.14663]
[1764806987448,0.0467103,93352.0,93351.0,0.14663]
[1764806987648,0.036,93352.0,93351.0,0.24663]
[1764806987854,0.036,93352.0,93351.0,0.14663]
[1764806993556,0.18649,93352.0,93351.0,0.14663]
[1764806994562,0.1612007,93347.0,93346.0,0.14663]
[1764806994755,0.1912007,93347.0,93346.0,0.14663]
[1764806995752,0.1932007,93347.0,93346.0,0.14663]
[1764806996156,0.1962007,93347.0,93346.0,0.07329]
[1764806997048,0.1962007,93347.0,93342.0,0.07345068]
[1764806997049,0.1612012,93343.0,93342.0,0.07345068]
[1764806997253,0.1612012,93343.0,93342.0,0.14679068]
[1764806997254,0.1912012,93343.0,93342.0,0.14679068]
[1764806998255,0.1922012,93343.0,93342.0,0.07345068]
[1764806998459,0.1922012,93343.0,93342.0,0.14679068]
[1764806998661,0.1922012,93343.0,93342.0,0.00016068]
[1764806998969,0.1942012,93343.0,93342.0,0.00016068]
[1764806999161,0.1942012,93343.0,93342.0,0.07345068]
[1764806999354,0.1942012,93343.0,93342.0,0.14679068]
[1764806999355,0.18349,93343.0,93342.0,0.14679068]
[1764806999561,0.10963,93343.0,93342.0,0.14679068]
[1764807000161,0.18349,93343.0,93342.0,0.14679068]
[1764807000665,0.10963,93343.0,93342.0,0.14679068]
[1764807000969,0.18349,93343.0,93342.0,0.14679068]
[1764807001464,0.18349,93343.0,93342.0,0.07345068]
[1764807001665,0.15049,93336.0,93334.0,0.07677791]
[1764807001863,0.1612022,93334.0,93332.0,0.07677791]
[1764807002066,0.15049,93333.0,93332.0,0.07329]
[1764807002263,0.18049,93333.0,93332.0,0.07329]
[1764807003669,0.14752,93330.0,93329.0,0.15006791]
[1764807003868,0.1556028,93329.0,93325.0,0.07677791]
[1764807004167,0.14489,93327.0,93326.0,0.17146578]
[1764807004471,0.104,93327.0,93326.0,0.24824369]
[1764807005472,0.105,93327.0,93326.0,0.24824369]
[1764807005975,0.105,93327.0,93326.0,0.24924369]
[1764807006474,0.186603,93327.0,93326.0,0.24924369]
[1764807006675,0.186603,93327.0,93326.0,0.09575369]
[1764807006866,0.186603,93327.0,93326.0,0.01897578]
[1764807007866,0.186603,93327.0,93326.0,0.09786578]
[1764807008678,0.186603,93327.0,93326.0,0.17246578]
[1764807010076,0.186603,93327.0,93326.0,0.01897578]
[1764807010876,0.186603,93327.0,93326.0,0.17246578]
[1764807011282,0.105,93327.0,93326.0,0.17246578]
[1764807012168,0.031,93327.0,93326.0,0.17246578]
[1764807012784,0.031,93327.0,93326.0,0.27246578]
[1764807014487,0.17044574,93370.0,93326.0,0.27246578]
[1764807014488,0.0107108,93347.0,93336.0,0.164202]
[1764807014789,0.03016068,93342.0,93341.0,0.1642014]
[1764807015781,0.03216068,93342.0,93341.0,0.1642014]
[1764807016083,0.03216068,93342.0,93341.0,0.2642014]
[1764807016583,0.03316068,93342.0,93341.0,0.2642014]
[1764807018280,0.03316068,93342.0,93341.0,0.1642014]
[1764807019284,0.11787198,93342.0,93341.0,0.1642014]
[1764807019487,0.18876198,93342.0,93341.0,0.1642014]
[1764807019687,0.18876198,93342.0,93341.0,0.15349]
[1764807020186,0.18876198,93342.0,93341.0,0.1642014]
[1764807021986,0.17805068,93342.0,93341.0,0.1642014]
[1764807022283,0.03316068,93342.0,93341.0,0.1642014]
[1764807022988,0.10716068,93342.0,93341.0,0.1642014]
[1764807023181,0.17805068,93342.0,93341.0,0.15349]
[1764807023383,0.17805068,93342.0,93341.0,0.1642014]
[1764807025391,0.17805068,93342.0,93341.0,0.15349]
[1764807025592,0.17805068,93342.0,93341.0,0.07889]
[1764807025794,0.17805068,93342.0,93341.0,0.23044047]
[1764807025995,0.17805068,93342.0,93341.0,0.15349]
[1764807028989,0.03316068,93342.0,93341.0,0.23044047]
[1764807029192,0.03316068,93342.0,93341.0,0.15349]
[1764807030994,0.03316068,93342.0,93341.0,0.25349]
[1764807037484,0.05,93352.0,93351.0,0.1512203]
[1764807037794,0.03,93352.0,93351.0,0.1512203]
[1764807038395,0.17638,93352.0,93351.0,0.1512203]
[1764807038799,0.17838,93352.0,93351.0,0.1512203]
[1764807039597,0.17638,93352.0,93351.0,0.1512203]
[1764807039993,0.1870902,93352.0,93351.0,0.1592203]
[1764807040589,0.1870902,93352.0,93351.0,0.1522203]
[1764807041300,0.1870902,93352.0,93351.0,0.001]
[1764807041489,0.1870902,93352.0,93351.0,0.07797414]
[1764807041690,0.1870902,93352.0,93351.0,0.13627]
[1764807043082,0.17638,93352.0,93351.0,0.13627]
[1764807043299,0.10662,93352.0,93351.0,0.1469803]
[1764807043791,0.1173302,93352.0,93351.0,0.1469803]
[1764807045799,0.03,93352.0,93351.0,0.1469803]
[1764807047201,0.03,93352.0,93351.0,0.1539803]
[1764807048092,0.03,93352.0,93351.0,0.1549803]
[1764807050304,0.03,93352.0,93351.0,0.2549803]
[1764807050500,0.03,93352.0,93351.0,0.3750803]
[1764807050988,0.16108,93352.0,93351.0,0.26437]
[1764807051192,0.1717902,93352.0,93351.0,0.26437]
[1764807051401,0.1717902,93352.0,93351.0,0.19818]
[1764807051599,0.1717902,93352.0,93351.0,0.1291]
[1764807052095,0.1717902,93352.0,93351.0,0.1281]
[1764807052400,0.1717902,93352.0,93351.0,0.1291]
[1764807052901,0.1717902,93352.0,93351.0,0.1281]
[1764807053101,0.1717902,93352.0,93351.0,0.1271]
[1764807053503,0.1717902,93352.0,93351.0,0.1211]
[1764807055799,0.1717902,93352.0,93351.0,0.001]
[1764807055999,0.13108,93343.0,93340.0,0.00999999]
[1764807056206,0.13108,93343.0,93338.0,0.07700901]
[1764807056207,0.16108,93343.0,93338.0,0.07700901]
[1764807057197,0.16208,93343.0,93342.0,0.01516068]
[1764807057698,0.0107113,93342.0,93334.0,0.07700901]
[1764807058004,0.1417921,93335.0,93334.0,0.07700901]
[1764807058208,0.13108,93331.0,93330.0,0.07700901]
[1764807058401,0.16108,93331.0,93330.0,0.07700901]
[1764807059202,0.1846627,93330.0,93329.0,0.07700901]
[1764807059407,0.2146627,93330.0,93329.0,0.14608901]
[1764807059707,0.2146627,93330.0,93329.0,0.21227901]
[1764807059894,0.1717927,93330.0,93329.0,0.21227901]
[1764807060098,0.09558,93330.0,93329.0,0.13527]
[1764807060306,0.09658,93330.0,93329.0,0.15027]
[1764807060605,0.1727927,93330.0,93329.0,0.15027]
[1764807060806,0.16208,93330.0,93329.0,0.15027]
[1764807061005,0.09658,93330.0,93329.0,0.15027]
[1764807061207,0.031,93330.0,93329.0,0.15027]
[1764807061712,0.031,93330.0,93329.0,0.15227]
[1764807061909,0.00515845,93330.0,93329.0,0.15227]
[1764807062111,0.05016068,93340.0,93339.0,0.13527]
[1764807062300,0.03016068,93340.0,93339.0,0.1459817]
[1764807062609,0.16124068,93340.0,93339.0,0.13527]
[1764807063609,0.16224068,93340.0,93339.0,0.14727]
[1764807064298,0.16224068,93340.0,93339.0,0.012]
[1764807070313,0.16224068,93340.0,93326.0,0.01797578]
[1764807070314,0.13456,93327.0,93326.0,0.01797578]
[1764807070517,0.13456,93315.0,93314.0,0.09618909]
[1764807070713,0.13456,93287.0,93286.0,0.26890906]
[1764807070910,0.16456,93287.0,93286.0,0.26890906]
[1764807071220,0.16456,93287.0,93286.0,0.00026799]
[1764807071513,0.16456,93287.0,93286.0,0.01660787]
[1764807071816,0.16464414,93287.0,93286.0,0.01660787]
[1764807072022,0.16464414,93287.0,93286.0,0.08463787]
[1764807072221,0.16464414,93287.0,93286.0,0.15053787]
[1764807072411,0.17564414,93287.0,93286.0,0.15153787]
[1764807073017,0.17564414,93287.0,93286.0,0.01760787]
[1764807073220,0.17664414,93287.0,93286.0,0.08563787]
[1764807073416,0.17664414,93287.0,93286.0,0.15153787]
[1764807075112,0.04208414,93287.0,93286.0,0.15153787]
[1764807076020,0.11297414,93287.0,93286.0,0.15153787]
[1764807076222,0.17664414,93287.0,93286.0,0.15153787]
[1764807081317,0.17664414,93287.0,93286.0,0.08563787]
[1764807081627,0.13456,93284.0,93283.0,0.01388383]
[1764807081815,0.16456,93284.0,93283.0,0.01388383]
[1764807082016,0.16456,93284.0,93283.0,0.14781383]
[1764807082330,0.13456,93247.0,93246.0,0.00026811]
[1764807082623,0.16464414,93247.0,93246.0,0.13419811]
[1764807083209,0.16464414,93247.0,93246.0,0.0171834]
[1764807083619,0.16464414,93247.0,93246.0,0.0191834]
[1764807084616,0.16564414,93247.0,93246.0,0.0191834]
[1764807084812,0.13456,93244.0,93240.0,0.00999999]
[1764807085021,0.16456,93244.0,93240.0,0.00999999]
[1764807085316,0.16456,93244.0,93230.0,0.23327625]
[1764807085522,0.16456,93244.0,93243.0,0.01656648]
[1764807085822,0.16456,93244.0,93243.0,0.01856648]
[1764807086322,0.17956,93244.0,93243.0,0.01856648]
[1764807086714,0.18056,93244.0,93243.0,0.01656648]
[1764807087719,0.17956,93244.0,93243.0,0.01656648]
[1764807088310,0.16456,93244.0,93243.0,0.01656648]
[1764807088618,0.17756,93244.0,93243.0,0.01656648]
[1764807089225,0.17856,93244.0,93243.0,0.01656648]
[1764807089527,0.044,93244.0,93209.0,0.0107266]
[1764807089719,0.044,93244.0,93195.0,0.03936]
[1764807089720,0.1452854,93220.0,93219.0,0.13393]
[1764807090027,0.16456,93220.0,93219.0,0.13393]
[1764807090332,0.03,93220.0,93219.0,0.15041946]
[1764807091228,0.16456,93220.0,93219.0,0.15041946]
[1764807091530,0.03713676,93220.0,93219.0,0.15041946]
[1764807091830,0.10802676,93220.0,93219.0,0.15041946]
[1764807092318,0.03713676,93220.0,93219.0,0.15041946]
[1764807092830,0.08793,93253.0,93219.0,0.15041946]
[1764807092831,0.08793,93253.0,93252.0,0.13393]
[1764807093030,0.2732115,93253.0,93252.0,0.13393]
[1764807093230,0.1852815,93253.0,93252.0,0.13393]
[1764807093825,0.18532252,93253.0,93252.0,0.13393]
[1764807094319,0.19832252,93253.0,93252.0,0.13393]
[1764807094724,0.20032252,93253.0,93252.0,0.13393]
[1764807095434,0.19832252,93253.0,93252.0,0.13393]
[1764807095628,0.20032252,93253.0,93252.0,0.13393]
[1764807096225,0.18960102,93253.0,93252.0,0.13393]
[1764807096426,0.20032252,93253.0,93252.0,0.13393]
[1764807097327,0.05504102,93253.0,93252.0,0.1446516]
[1764807097528,0.05504102,93253.0,93252.0,0.13393]
[1764807098933,0.19650102,93253.0,93252.0,0.14166]
[1764807099834,0.19650102,93253.0,93252.0,0.06803]
[1764807100141,0.1521826,93244.0,93243.0,0.13824086]
[1764807100438,0.1921826,93244.0,93243.0,0.13824086]
[1764807101233,0.1931826,93244.0,93243.0,0.00016086]
[1764807101434,0.2011826,93244.0,93243.0,0.00016086]
[1764807108746,0.08046,93222.0,93221.0,0.15277]
[1764807108943,0.08046,93222.0,93221.0,0.23789264]
[1764807108944,0.12122612,93222.0,93221.0,0.23789264]
[1764807109245,0.18570102,93222.0,93221.0,0.23789264]
[1764807109642,0.11050102,93222.0,93221.0,0.23789264]
[1764807109846,0.03004102,93222.0,93221.0,0.33789264]
[1764807110234,0.03304102,93222.0,93221.0,0.33789264]
[1764807110543,0.18870102,93222.0,93221.0,0.23789264]
[1764807110742,0.19942612,93222.0,93221.0,0.23789264]
[1764807111334,0.19942612,93222.0,93221.0,0.15277]
[1764807112444,0.15566,93220.0,93210.0,0.1701911]
[1764807112747,0.18566,93220.0,93219.0,0.15467]
[1764807113141,0.18566,93220.0,93219.0,0.17095908]
[1764807113746,0.18866,93220.0,93219.0,0.17095908]
[1764807117752,0.18866,93220.0,93219.0,0.01818908]
[1764807117947,0.18866,93220.0,93219.0,0.09485908]
[1764807118748,0.18866,93220.0,93219.0,0.17095908]
[1764807120349,0.18866,93220.0,93219.0,0.21574908]
[1764807120554,0.11346,93220.0,93219.0,0.21574908]
[1764807120852,0.033,93220.0,93219.0,0.21574908]
[1764807121852,0.18866,93220.0,93219.0,0.21574908]
[1764807122056,0.18866,93220.0,93219.0,0.09485908]
[1764807122258,0.18866,93220.0,93219.0,0.01818908]
[1764807122648,0.18866,93220.0,93189.0,0.09571576]
[1764807122649,0.1663896,93183.0,93172.0,0.07698218]
[1764807122845,0.15566,93172.0,93171.0,0.15277]
[1764807123043,0.03,93172.0,93171.0,0.15277]
[1764807123352,0.03,93172.0,93171.0,0.16955095]
[1764807123558,0.0607297,93182.0,93181.0,0.1508]
[1764807123744,0.0408307,93182.0,93181.0,0.1508]
[1764807123947,0.1938807,93182.0,93181.0,0.1508]
[1764807124143,0.1938807,93182.0,93170.0,0.02073099]
[1764807124144,0.15305,93172.0,93171.0,0.01751882]
[1764807124348,0.15305,93172.0,93159.0,0.04229]
[1764807124349,0.0880816,93166.0,93165.0,0.1508]
[1764807124660,0.1937816,93166.0,93165.0,0.1508]
[1764807124844,0.1637822,93160.0,93159.0,0.13755471]
[1764807125043,0.1937822,93160.0,93159.0,0.09526471]
[1764807125249,0.19386168,93160.0,93159.0,0.16129292]
[1764807125655,0.03007948,93160.0,93159.0,0.16129292]
[1764807126860,0.00016097,93169.0,93168.0,0.1508]
[1764807127162,0.03016097,93169.0,93168.0,0.1508]
[1764807127773,0.03024325,93169.0,93168.0,0.1508]
[1764807129661,0.03024325,93169.0,93168.0,0.2508]
[1764807129970,0.03324325,93169.0,93168.0,0.1508]
[1764807130664,0.03124325,93169.0,93168.0,0.1518]
[1764807131164,0.07896,93176.0,93175.0,0.1508]
[1764807131364,0.10896,93176.0,93175.0,0.1508]
[1764807132164,0.26201,93176.0,93175.0,0.1508]
[1764807132662,0.18305,93176.0,93175.0,0.1508]
[1764807133473,0.18705,93176.0,93175.0,0.1508]
[1764807133668,0.18805,93176.0,93175.0,0.1508]
[1764807134377,0.18705,93176.0,93175.0,0.1508]
[1764807134575,0.18805,93176.0,93175.0,0.1508]
[1764807135473,0.1637814,93167.0,93166.0,0.31099111]
[1764807135673,0.1937814,93167.0,93166.0,0.1508]
[1764807136075,0.15305,93160.0,93159.0,0.16806989]
[1764807136377,0.18305,93160.0,93159.0,0.16806989]
[1764807136970,0.18305,93160.0,93159.0,0.21035989]
[1764807137674,0.18505,93160.0,93159.0,0.21235989]
[1764807138172,0.032,93160.0,93159.0,0.21235989]
[1764807139678,0.0107313,93168.0,93167.0,0.1508]
[1764807139877,0.0407313,93168.0,93167.0,0.1508]
[1764807140777,0.0427313,93168.0,93167.0,0.1508]
[1764807141165,0.032,93168.0,93167.0,0.1508]
[1764807142374,0.033,93168.0,93167.0,0.1508]
[1764807142876,0.033,93168.0,93167.0,0.2508]
[1764807143082,0.031,93168.0,93167.0,0.2518]
[1764807143282,0.031,93168.0,93167.0,0.2528]
[1764807143970,0.03,93168.0,93167.0,0.2508]
[1764807144170,0.032,93168.0,93167.0,0.1558]
[1764807145181,0.032,93168.0,93167.0,0.2558]
[1764807145583,0.03,93168.0,93167.0,0.2508]
[1764807145784,0.032,93168.0,93167.0,0.2558]
[1764807146582,0.032,93168.0,93167.0,0.1558]
[1764807146785,0.03,93168.0,93167.0,0.1528]
[1764807146980,0.032,93168.0,93167.0,0.1558]
[1764807147683,0.032,93168.0,93167.0,0.2558]
[1764807147879,0.032,93168.0,93167.0,0.1558]
[1764807148783,0.032,93168.0,93167.0,0.2558]
[1764807149085,0.03,93168.0,93167.0,0.2528]
[1764807149276,0.032,93168.0,93167.0,0.2558]
[1764807150479,0.18505,93168.0,93167.0,0.1558]